bitfinex/quotes_ETHUSD_20240614
["timestamp","ask_amount","ask_price","bid_price","bid_amount"]
[1718379421583,0.14068494,3491.0,3490.4,1.43344514]
[1718379421866,0.14068494,3491.0,3490.0,2.3132088]
[1718379421867,3.00518494,3491.0,3490.5,35.0]
[1718379422302,0.58695349,3490.9,3490.0,4.8019088]
[1718379422604,0.07162326,3490.8,3490.1,1.43344514]
[1718379422969,0.06882891,3490.7,3490.1,1.43344514]
[1718379424110,0.06882891,3490.7,3489.9,0.44831083]
[1718379424111,2.86494,3490.5,3489.9,0.44831083]
[1718379424332,2.86523,3490.2,3489.9,0.44831083]
[1718379424476,0.65183777,3490.1,3489.9,0.44831083]
[1718379424823,0.13995079,3490.1,3489.9,0.44831083]
[1718379426072,2.86532,3490.0,3489.9,0.44831083]
[1718379426275,2.93335524,3490.0,3489.9,0.44831083]
[1718379428124,8.20397524,3490.0,3489.9,0.44831083]
[1718379429586,5.33865524,3490.0,3489.9,0.44831083]
[1718379429918,6.44555576,3490.0,3489.9,0.44831083]
[1718379430214,9.31087576,3490.0,3489.9,0.44831083]
[1718379430421,6.44555576,3490.0,3489.9,0.44831083]
[1718379430995,9.31087576,3490.0,3489.9,0.44831083]
[1718379432083,12.17619576,3490.0,3489.9,0.44831083]
[1718379433324,15.17619576,3490.0,3489.9,0.44831083]
[1718379433795,18.04151576,3490.0,3489.9,0.44831083]
[1718379433999,15.72619576,3490.0,3489.9,0.44831083]
[1718379434209,24.8439609,3490.0,3489.9,0.44831083]
[1718379435136,2.86598,3489.2,3488.2,2.4859]
[1718379435424,0.07166202,3489.1,3488.3,1.43344514]
[1718379435608,0.07166202,3489.1,3488.4,0.44858506]
[1718379435807,2.93200197,3489.0,3488.4,0.44858506]
[1718379435990,0.07166199,3488.9,3488.4,0.44858506]
[1718379436188,2.93789199,3488.9,3488.4,0.88537808]
[1718379436391,0.06573644,3488.8,3488.4,0.44858506]
[1718379436617,0.07166487,3488.7,3488.4,0.44858506]
[1718379437032,0.06530448,3488.6,3488.4,0.44858506]
[1718379439602,2.86656,3488.5,3488.4,0.44858506]
[1718379439835,8.59968,3488.5,3488.4,0.44858506]
[1718379440131,8.59968,3488.5,3487.2,2.75314835]
[1718379440132,4.03938515,3488.5,3487.5,0.05734171]
[1718379440433,0.07167659,3488.4,3487.7,2.4721]
[1718379440807,0.06497162,3488.3,3487.7,2.4721]
[1718379441007,0.07167659,3488.2,3487.7,2.4721]
[1718379441348,0.06485603,3488.1,3487.7,2.90752272]
[1718379441634,0.06485603,3488.1,3487.8,1.43344514]
[1718379441929,2.86645,3488.7,3487.8,1.43344514]
[1718379441930,0.07167324,3488.6,3487.8,1.43344514]
[1718379442136,5.2548,3489.2,3487.8,1.43344514]
[1718379442137,5.866,3489.2,3488.1,2.86688]
[1718379442302,0.07166423,3489.1,3488.2,2.193365]
[1718379442510,0.07166423,3489.1,3488.3,37.3427]
[1718379442686,0.07165858,3489.4,3488.6,2.86646]
[1718379442896,0.07165858,3489.4,3488.6,1.43344514]
[1718379443997,2.866,3489.2,3488.3,2.3427]
[1718379444353,8.13123,3489.9,3488.3,2.3427]
[1718379444354,0.07166193,3489.1,3488.3,4.72569613]
[1718379444633,2.86616,3489.0,3488.3,4.72569613]
[1718379444846,0.0716632,3488.9,3488.3,4.72569613]
[1718379445334,0.0716632,3488.9,3487.9,2.86703]
[1718379445335,2.86632,3488.8,3487.9,2.428]
[1718379445653,0.07166786,3488.7,3488.0,1.43344514]
[1718379445934,2.86649,3488.6,3487.9,2.428]
[1718379446112,0.0716751,3488.5,3487.9,2.428]
[1718379446836,0.0716751,3488.5,3487.9,3.01434227]
[1718379447040,2.93808323,3488.7,3487.9,3.01434227]
[1718379448646,2.86707,3487.9,3486.3,2.86360303]
[1718379448825,8.40288321,3488.6,3487.1,1.43344514]
[1718379448826,0.07168534,3487.8,3487.1,1.43344514]
[1718379449029,0.13641922,3487.8,3487.1,1.43344514]
[1718379449196,0.07168534,3487.7,3487.2,0.70140862]
[1718379449412,0.07168534,3487.7,3487.2,2.13485376]
[1718379449735,0.06481289,3487.6,3487.2,2.13485376]
[1718379450053,0.06481289,3487.6,3487.3,3.29879341]
[1718379450257,0.06481289,3487.6,3487.5,5.27968]
[1718379450406,0.07167708,3488.4,3487.6,2.86727]
[1718379450610,2.93807315,3488.7,3487.7,1.49078366]
[1718379450846,0.06508803,3488.3,3487.7,1.49078366]
[1718379451052,2.93807315,3488.7,3487.7,1.49078366]
[1718379451212,0.06510434,3488.2,3487.8,1.808]
[1718379451412,2.93807315,3488.7,3487.9,0.61660537]
[1718379451708,2.93183547,3488.6,3487.9,0.61660537]
[1718379451936,0.0716732,3488.5,3487.9,0.61660537]
[1718379452247,0.13699648,3488.5,3487.9,0.61660537]
[1718379453729,0.13699648,3488.5,3487.8,3.24144514]
[1718379453930,0.13699648,3488.5,3487.8,1.43344514]
[1718379454131,0.13699648,3488.5,3487.5,3.5120882]
[1718379454132,2.86672,3488.3,3487.5,2.4123]
[1718379454353,2.93855036,3488.2,3487.5,3.84574514]
[1718379454513,2.86707,3487.9,3487.1,2.4467]
[1718379454718,0.07168396,3487.8,3487.2,1.43344514]
[1718379454944,0.1364255,3487.8,3487.2,1.43344514]
[1718379455143,0.06474154,3487.8,3487.2,3.24144514]
[1718379455347,0.06474154,3487.8,3487.2,6.10900514]
[1718379455615,2.93848912,3488.2,3487.2,3.24144514]
[1718379455836,2.86697,3488.0,3487.2,1.43344514]
[1718379456056,2.93873124,3487.9,3487.1,5.1310271]
[1718379456254,2.86714,3487.8,3487.0,0.44868102]
[1718379456556,0.13646136,3487.7,3487.0,0.44868102]
[1718379456761,0.13646136,3487.7,3487.0,1.88212616]
[1718379457079,0.13646136,3487.7,3487.0,3.08261178]
[1718379457356,0.13645934,3487.7,3487.1,3.24144514]
[1718379457648,0.06477088,3487.7,3487.2,2.4091]
[1718379457847,0.07168362,3487.9,3487.3,1.43344514]
[1718379458051,0.06432546,3487.6,3487.3,1.43344514]
[1718379458261,0.07168362,3487.9,3487.3,2.45019532]
[1718379458428,2.86722,3487.7,3487.2,2.4091]
[1718379458632,0.07169083,3487.6,3487.2,2.4091]
[1718379458832,0.13601629,3487.6,3487.2,2.4091]
[1718379460960,0.13601629,3487.6,3487.0,1.64916664]
[1718379461264,3.00331629,3487.6,3487.0,0.44868102]
[1718379461568,0.13601629,3487.6,3487.0,0.44868102]
[1718379461867,4.808,3489.0,3487.0,0.44868102]
[1718379461868,2.86738,3487.5,3487.0,0.44868102]
[1718379462064,0.13590738,3487.4,3487.0,0.44868102]
[1718379462638,2.86755,3487.3,3487.0,0.44868102]
[1718379462863,0.13577709,3487.2,3487.0,0.44868102]
[1718379463287,3.00341709,3487.2,3487.0,0.44868102]
[1718379463492,2.86771,3487.1,3487.0,0.44868102]
[1718379463795,2.93146204,3487.1,3487.0,0.44868102]
[1718379464097,3.85313412,3487.1,3487.0,0.44868102]
[1718379464672,5.79917204,3487.1,3487.0,0.44868102]
[1718379464883,2.86785,3487.0,3486.2,1.808]
[1718379465199,3.00314755,3486.9,3486.4,0.44885504]
[1718379466279,0.13526755,3486.9,3486.4,0.44885504]
[1718379467412,3.00315755,3486.9,3486.4,0.44885504]
[1718379468501,0.13526755,3486.9,3486.4,0.44885504]
[1718379468810,0.07170695,3486.8,3486.4,0.44885504]
[1718379469000,0.07171065,3486.7,3486.4,0.44885504]
[1718379469317,0.13496779,3486.7,3486.4,0.44885504]
[1718379469916,0.06325714,3486.7,3486.4,0.44885504]
[1718379470114,0.13496367,3486.7,3486.4,0.44885504]
[1718379470279,0.07170653,3486.7,3486.4,0.44885504]
[1718379470481,0.06311086,3486.6,3486.4,0.44885504]
[1718379470714,0.07170653,3486.9,3486.4,0.44885504]
[1718379471012,0.06322655,3486.8,3486.4,0.44885504]
[1718379471191,0.07170652,3486.7,3486.4,0.44885504]
[1718379471521,0.06311086,3486.6,3486.4,0.44885504]
[1718379471878,0.07170652,3486.5,3486.4,0.44885504]
[1718379472083,0.13475954,3486.5,3486.4,0.44885504]
[1718379472396,0.13475954,3486.5,3486.0,0.1197777]
[1718379472397,2.86831,3486.4,3486.0,0.1197777]
[1718379472701,0.13448542,3486.3,3486.0,0.1197777]
[1718379472892,0.07171065,3486.2,3486.0,0.1197777]
[1718379473081,2.33837633,3486.1,3486.0,0.1197777]
[1718379473274,0.06257633,3486.1,3486.0,0.1197777]
[1718379473475,2.86813,3486.6,3486.0,0.1197777]
[1718379473476,0.07171065,3486.3,3486.0,0.1197777]
[1718379473678,0.13434484,3486.2,3486.0,0.1197777]
[1718379475848,0.06263419,3486.2,3486.0,1.55322284]
[1718379476210,0.07171065,3486.5,3486.0,1.55322284]
[1718379476211,2.8683,3486.4,3486.0,0.1197777]
[1718379476406,0.06235604,3486.1,3486.0,0.1197777]
[1718379476649,0.07171065,3486.3,3486.0,0.1197777]
[1718379476849,0.06238193,3486.1,3486.0,0.1197777]
[1718379477011,0.07171065,3486.3,3486.0,0.1197777]
[1718379477351,2.93991065,3486.5,3486.0,0.1197777]
[1718379477555,0.0624398,3486.2,3486.0,0.1197777]
[1718379477843,0.07171065,3486.4,3486.0,0.1197777]
[1718379478049,0.06238193,3486.1,3486.0,0.1197777]
[1718379478348,5.7994266,3486.1,3486.0,0.1197777]
[1718379479447,8.6679566,3486.1,3486.0,0.1197777]
[1718379480253,11.1195566,3486.1,3486.0,0.1197777]
[1718379480460,11.6695566,3486.1,3486.0,0.1197777]
[1718379480646,13.12336026,3486.1,3486.0,0.1197777]
[1718379480844,16.12336026,3486.1,3486.0,0.1197777]
[1718379481961,10.25323026,3486.1,3486.0,0.1197777]
[1718379482131,5.7994266,3486.1,3486.0,0.1197777]
[1718379482318,2.9308966,3486.1,3486.0,0.1197777]
[1718379482520,0.0623666,3486.1,3486.0,0.1197777]
[1718379482768,2.94009065,3486.3,3486.0,0.1197777]
[1718379482921,0.05968982,3486.1,3486.0,0.1197777]
[1718379483257,2.86853,3486.1,3486.0,0.1197777]
[1718379483454,0.05978115,3486.1,3486.0,0.1197777]
[1718379483657,0.05978115,3486.1,3486.0,2.5984777]
[1718379483860,0.05978115,3486.1,3486.0,2.85832547]
[1718379484060,0.07171065,3486.7,3486.0,2.85832547]
[1718379484230,2.93976065,3486.7,3486.0,2.85832547]
[1718379484431,2.93976065,3486.7,3486.0,2.5984777]
[1718379484631,0.06045367,3486.6,3486.0,2.5984777]
[1718379484861,0.07171065,3486.5,3486.0,2.5984777]
[1718379485227,0.06033797,3486.4,3486.0,2.5984777]
[1718379486033,0.07171065,3486.6,3486.0,2.5984777]
[1718379486231,0.06037711,3486.3,3486.0,2.5984777]
[1718379486537,0.06031924,3486.2,3486.0,2.5984777]
[1718379486862,0.06031924,3486.2,3486.0,0.1197777]
[1718379487033,0.07171065,3486.5,3486.0,0.1197777]
[1718379487361,2.86851,3486.2,3486.0,0.1197777]
[1718379487565,2.94024065,3486.1,3486.0,0.1197777]
[1718379487718,8.73755342,3486.1,3486.0,0.1197777]
[1718379491327,3.00049342,3486.1,3486.0,0.1197777]
[1718379491859,5.86902342,3486.1,3486.0,0.1197777]
[1718379492641,3.00049342,3486.1,3486.0,0.1197777]
[1718379492842,6.74275876,3486.1,3486.0,0.1197777]
[1718379494531,0.13196342,3486.1,3486.0,0.1197777]
[1718379494727,2.92878277,3486.1,3486.0,0.1197777]
[1718379495130,5.79731277,3486.1,3486.0,0.1197777]
[1718379496697,8.66584277,3486.1,3486.0,0.1197777]
[1718379497061,11.66584277,3486.1,3486.0,0.1197777]
[1718379497371,15.50187105,3486.1,3486.0,0.1197777]
[1718379499238,13.11927105,3486.1,3486.0,0.1197777]
[1718379499432,10.25074105,3486.1,3486.0,0.1197777]
[1718379499686,2.92878277,3486.1,3486.0,0.1197777]
[1718379500382,0.06025277,3486.1,3486.0,0.1197777]
[1718379500697,0.13196342,3486.1,3486.0,0.1197777]
[1718379500837,0.07171065,3486.1,3486.0,0.1197777]
[1718379501041,0.13096884,3486.1,3486.0,0.1197777]
[1718379502468,6.45480772,3486.1,3486.0,0.1197777]
[1718379502842,9.32333772,3486.1,3486.0,0.1197777]
[1718379505383,5.86802884,3486.1,3486.0,0.1197777]
[1718379505872,0.13096884,3486.1,3486.0,0.1197777]
[1718379506078,2.92778819,3486.1,3486.0,0.1197777]
[1718379506243,0.05925819,3486.1,3486.0,0.1197777]
[1718379506581,0.13096884,3486.1,3486.0,0.1197777]
[1718379507678,0.05925819,3486.1,3486.0,0.1197777]
[1718379508057,0.07171065,3486.2,3486.0,0.1197777]
[1718379508385,0.05930751,3486.1,3486.0,0.1197777]
[1718379509196,0.07171065,3486.6,3486.0,0.36458547]
[1718379509539,0.05942737,3486.1,3486.0,0.36458547]
[1718379509648,2.86779,3487.0,3486.0,1.85540074]
[1718379509853,0.05965879,3486.5,3486.1,2.77866121]
[1718379510079,0.07170528,3486.9,3486.1,2.77866121]
[1718379510449,0.05983232,3486.8,3486.1,2.77866121]
[1718379511165,0.13153758,3486.8,3486.1,2.77866121]
[1718379513046,0.05983232,3486.8,3486.1,2.77866121]
[1718379513247,0.05983232,3486.8,3486.2,1.01482267]
[1718379513248,0.13153756,3486.8,3486.2,1.01482267]
[1718379513471,0.13153756,3486.8,3486.2,2.44826781]
[1718379513783,2.99949756,3486.8,3486.2,2.44826781]
[1718379513971,2.99949756,3486.8,3486.2,1.43344514]
[1718379514178,2.99949756,3486.8,3486.0,0.1197777]
[1718379514179,0.07170524,3486.7,3486.0,0.1197777]
[1718379514474,2.86828,3486.4,3486.0,0.1197777]
[1718379514781,0.13152548,3486.3,3486.0,0.1197777]
[1718379514945,2.94022065,3486.2,3486.0,0.1197777]
[1718379515147,2.99997762,3486.2,3486.0,0.1197777]
[1718379515374,0.13146762,3486.2,3486.0,0.1197777]
[1718379519698,0.05975697,3486.2,3486.0,0.1197777]
[1718379520051,0.07171065,3486.5,3486.1,2.4993]
[1718379520591,2.86798,3486.8,3486.1,2.4993]
[1718379520810,2.93982065,3486.7,3486.1,2.4993]
[1718379521091,0.07171065,3486.7,3486.1,2.4993]
[1718379522550,0.07171065,3486.7,3486.1,3.93274514]
[1718379522755,2.93957609,3486.9,3486.1,3.93274514]
[1718379523180,0.07170609,3486.9,3486.2,1.43344514]
[1718379523382,0.07170609,3486.9,3486.3,0.69211328]
[1718379523958,0.06002282,3486.8,3486.3,0.69211328]
[1718379524264,0.06002282,3486.8,3486.2,1.43344514]
[1718379524265,0.13172786,3486.8,3486.2,1.43344514]
[1718379525360,0.06002282,3486.8,3486.2,1.43344514]
[1718379529365,0.1317278,3486.8,3486.2,1.43344514]
[1718379529582,0.06002282,3486.8,3486.2,1.43344514]
[1718379531586,0.1317278,3486.8,3486.2,1.43344514]
[1718379532992,2.9997078,3486.8,3486.2,1.43344514]
[1718379534487,2.92800282,3486.8,3486.2,1.43344514]
[1718379537501,0.06002282,3486.8,3486.2,1.43344514]
[1718379537837,0.06002282,3486.8,3486.2,2.30636642]
[1718379539913,0.07170491,3486.9,3486.2,2.30636642]
[1718379540105,0.06005789,3486.7,3486.2,2.30636642]
[1718379540300,0.06011573,3486.8,3486.2,2.30636642]
[1718379540507,0.05999719,3486.6,3486.2,2.30636642]
[1718379540700,0.06005504,3486.7,3486.2,2.30636642]
[1718379540902,0.05993934,3486.5,3486.2,2.30636642]
[1718379541102,0.05999719,3486.6,3486.1,2.4993]
[1718379541302,0.05988149,3486.4,3486.1,2.4993]
[1718379541537,2.99986999,3486.5,3486.1,2.4993]
[1718379541737,0.05982363,3486.3,3486.1,2.4993]
[1718379542036,0.05976578,3486.2,3486.1,2.4993]
[1718379542202,0.07171065,3486.3,3486.1,2.4993]
[1718379542407,0.05976578,3486.2,3486.1,2.4993]
[1718379542631,0.07171065,3486.3,3486.1,2.4993]
[1718379542793,0.05976578,3486.2,3486.0,0.1197777]
[1718379542996,0.07171065,3486.5,3486.0,0.1197777]
[1718379543190,2.86789,3486.9,3486.1,2.4823]
[1718379543394,4.36410315,3487.3,3486.2,1.43344514]
[1718379543395,2.86785,3487.0,3486.2,1.43344514]
[1718379543694,0.07170486,3486.9,3486.2,1.43344514]
[1718379544731,2.93958486,3486.9,3486.2,1.43344514]
[1718379547465,2.86796,3486.8,3486.2,1.43344514]
[1718379547690,2.86831,3486.4,3486.1,2.4823]
[1718379547965,0.07171065,3486.3,3486.0,0.1197777]
[1718379549616,2.86846,3486.2,3486.0,0.1197777]
[1718379550154,2.86839,3486.3,3486.0,0.1197777]
[1718379550358,0.07171065,3486.2,3486.0,0.1197777]
[1718379550656,2.86853,3486.1,3486.0,0.1197777]
[1718379550894,2.86847,3486.2,3486.0,0.1197777]
[1718379551153,0.07171065,3486.1,3486.0,0.1197777]
[1718379552261,0.07171065,3486.2,3486.0,0.1197777]
[1718379553355,2.8682,3486.5,3486.0,0.1197777]
[1718379553534,0.07171065,3486.4,3486.0,0.1197777]
[1718379553873,0.05874098,3486.3,3486.0,0.1197777]
[1718379555542,1.19735559,3486.8,3486.1,2.476]
[1718379555741,0.05876604,3486.2,3486.1,2.476]
[1718379555943,0.07170984,3486.7,3486.1,2.476]
[1718379556349,0.05897727,3486.6,3486.1,2.476]
[1718379556550,0.05897727,3486.6,3486.1,4.63669791]
[1718379557553,0.05897727,3486.6,3486.1,3.90944514]
[1718379560678,0.07170632,3486.7,3486.1,3.90944514]
[1718379560981,0.05893368,3486.5,3486.1,3.90944514]
[1718379561193,0.05899153,3486.6,3486.1,3.90944514]
[1718379561367,0.0588787,3486.4,3486.1,3.90944514]
[1718379561677,0.05884103,3486.3,3486.1,3.90944514]
[1718379561873,0.07170632,3486.7,3486.1,3.90944514]
[1718379562478,0.05901458,3486.6,3486.1,3.90944514]
[1718379563286,0.98706575,3486.6,3486.1,3.90944514]
[1718379564851,0.1307209,3486.6,3486.1,3.90944514]
[1718379565179,0.1307209,3486.6,3486.1,2.476]
[1718379565386,0.1307209,3486.6,3486.0,0.1197777]
[1718379565560,2.86834,3486.4,3486.0,0.1197777]
[1718379565960,0.05882084,3486.3,3486.0,0.1197777]
[1718379566400,2.92719084,3486.3,3486.0,0.1197777]
[1718379566679,2.86853,3486.1,3486.0,0.1197777]
[1718379566886,2.92714968,3486.1,3486.0,0.1197777]
[1718379569586,8.66420968,3486.1,3486.0,0.1197777]
[1718379569794,9.86156527,3486.1,3486.0,0.1197777]
[1718379570166,8.66420968,3486.1,3486.0,0.1197777]
[1718379570381,9.87023997,3486.1,3486.0,0.1197777]
[1718379570561,11.06759556,3486.1,3486.0,0.1197777]
[1718379570762,9.87023997,3486.1,3486.0,0.1197777]
[1718379574798,12.73876997,3486.1,3486.0,0.1197777]
[1718379577405,14.23558951,3486.1,3486.0,0.1197777]
[1718379579486,18.66896997,3486.1,3486.0,0.1197777]
[1718379581379,31.16962796,3486.1,3486.0,0.1197777]
[1718379581621,2.86976,3484.6,3484.5,2.4697]
[1718379582083,2.92549136,3484.6,3484.5,2.4697]
[1718379583024,0.05573136,3484.6,3484.5,2.4697]
[1718379583196,0.12744201,3484.6,3484.5,2.4697]
[1718379583396,2.86993,3484.4,3484.3,0.44903576]
[1718379583805,2.92533108,3484.4,3484.3,0.44903576]
[1718379587027,5.79526108,3484.4,3484.3,0.44903576]
[1718379587204,6.66177219,3484.4,3484.3,0.44903576]
[1718379587525,2.8702,3484.1,3483.7,2.3698]
[1718379587839,2.92534108,3484.4,3483.7,2.3698]
[1718379588045,0.0550609,3484.0,3483.7,2.3698]
[1718379588187,0.07171065,3484.3,3483.7,2.3698]
[1718379588496,0.07171065,3484.2,3483.8,0.23698]
[1718379589000,0.05503313,3484.1,3483.8,0.23698]
[1718379589728,0.12674378,3484.1,3483.8,0.23698]
[1718379592128,0.05503313,3484.1,3483.8,0.23698]
[1718379592337,2.86995,3484.4,3483.8,0.23698]
[1718379592498,0.05211867,3484.0,3483.8,0.23698]
[1718379592698,2.86987,3484.5,3483.9,0.442178]
[1718379592899,0.07171065,3484.4,3483.9,0.442178]
[1718379593230,0.05229245,3484.3,3483.9,0.442178]
[1718379594217,0.05229245,3484.3,3483.8,0.23698]
[1718379595205,0.1240031,3484.3,3483.8,0.23698]
[1718379597238,2.9940831,3484.3,3483.8,0.23698]
[1718379599004,2.9940831,3484.3,3484.0,0.757]
[1718379599407,2.87016,3484.2,3484.0,0.757]
[1718379599602,0.12387564,3484.1,3484.0,0.757]
[1718379599816,2.99405564,3484.1,3484.0,0.757]
[1718379600315,0.12387564,3484.1,3484.0,0.757]
[1718379600713,0.12387564,3484.1,3483.7,2.3698]
[1718379600907,0.12387564,3484.1,3483.3,2.4465]
[1718379600908,0.4232652,3484.1,3483.3,2.4465]
[1718379601113,2.8706,3483.6,3483.3,2.4465]
[1718379601333,0.12334455,3483.5,3483.3,3.2035]
[1718379601549,0.12334455,3483.5,3483.0,9.7342]
[1718379601550,0.0516339,3483.5,3483.0,9.7342]
[1718379601848,5.2829,3484.4,3483.0,9.7342]
[1718379601849,7.27,3484.5,3483.4,2.4642]
[1718379602013,2.94166065,3484.4,3484.1,0.757]
[1718379602206,2.99402721,3484.4,3484.1,0.757]
[1718379602631,0.12407721,3484.4,3484.1,0.757]
[1718379603504,0.05236656,3484.4,3484.3,0.757]
[1718379603620,0.07171065,3484.6,3484.3,0.757]
[1718379603821,0.05050858,3484.5,3484.3,0.757]
[1718379604320,0.07171065,3485.0,3484.4,0.31068]
[1718379604651,0.0507251,3484.9,3484.6,0.757]
[1718379605444,0.0507251,3484.9,3484.2,2.3498]
[1718379605711,0.07171065,3484.8,3484.5,0.757]
[1718379605933,0.05056892,3484.7,3484.5,0.757]
[1718379606253,0.05051101,3484.6,3484.5,0.757]
[1718379608832,0.07171065,3484.9,3484.5,0.757]
[1718379609029,0.07171065,3484.9,3484.7,0.757]
[1718379609356,0.05079894,3484.8,3484.2,2.3498]
[1718379609519,0.05079894,3484.8,3484.5,0.757]
[1718379609716,2.94115065,3485.0,3484.5,0.757]
[1718379609921,0.05085684,3484.9,3484.5,0.757]
[1718379610322,0.12256749,3484.9,3484.2,2.3498]
[1718379610623,2.86961,3484.8,3484.1,0.757]
[1718379610823,0.12245169,3484.7,3483.8,2.4374]
[1718379611050,2.86985,3484.5,3484.1,0.757]
[1718379611363,0.12227797,3484.4,3484.3,0.757]
[1718379611566,0.05056732,3484.4,3484.3,0.757]
[1718379611974,0.07171065,3484.6,3484.3,0.757]
[1718379612148,0.05056732,3484.4,3484.3,0.757]
[1718379612348,2.86953,3484.9,3484.3,0.757]
[1718379612549,2.86953,3484.9,3483.4,1.723]
[1718379612550,0.07171065,3484.8,3483.4,1.723]
[1718379612751,2.86998,3484.4,3484.1,0.757]
[1718379612950,2.86998,3484.4,3483.7,2.4501]
[1718379612951,2.94176065,3484.3,3483.7,2.4501]
[1718379613153,2.94182065,3484.2,3483.9,0.757]
[1718379613404,0.07171065,3484.2,3483.9,0.757]
[1718379613966,0.05039356,3484.1,3483.9,0.757]
[1718379614472,2.87036,3483.9,3483.6,0.757]
[1718379614682,0.05021977,3483.8,3483.6,0.757]
[1718379615006,0.05021977,3483.8,3483.2,3.0]
[1718379615166,0.05021977,3483.8,3483.3,1.43344514]
[1718379615369,2.8707,3483.5,3483.1,2.3033]
[1718379615608,2.94248065,3483.4,3483.0,0.44920888]
[1718379615903,2.87094,3483.2,3483.0,0.44920888]
[1718379616086,0.12122258,3483.1,3483.0,0.44920888]
[1718379616297,2.99223258,3483.1,3482.7,2.3829]
[1718379616666,2.87109,3483.0,3482.7,2.3829]
[1718379616982,0.04939599,3482.9,3482.3,7.27]
[1718379617186,2.99228664,3482.9,3482.4,2.3552]
[1718379617389,2.87125,3482.8,3482.4,2.3552]
[1718379617764,0.04938568,3482.7,3482.4,2.3552]
[1718379618197,2.87125,3482.8,3482.4,2.3552]
[1718379618392,0.04892684,3482.7,3482.4,2.3552]
[1718379618810,2.87125,3482.8,3482.4,2.3552]
[1718379619029,0.04892684,3482.7,3482.3,7.27]
[1718379619346,3.52217533,3482.7,3482.3,7.27]
[1718379619504,3.57099066,3482.7,3481.8,2.4194]
[1718379619692,6.44232066,3482.7,3481.8,2.4194]
[1718379620751,9.31365066,3482.7,3481.8,2.4194]
[1718379621087,6.44232066,3482.7,3481.8,2.4194]
[1718379621446,11.57985066,3482.7,3481.5,0.44937199]
[1718379621625,14.57985066,3482.7,3481.5,0.44937199]
[1718379621993,14.57985066,3482.7,3481.1,2.3235]
[1718379622310,14.57985066,3482.7,3481.3,1.816]
[1718379622513,14.57985066,3482.7,3481.4,0.0574413]
[1718379622514,12.31365066,3482.7,3481.4,0.0574413]
[1718379622844,9.44232066,3482.7,3481.9,2.3526]
[1718379623333,14.70255066,3482.7,3480.8,10.14289]
[1718379623632,15.25255066,3482.7,3480.9,4.816]
[1718379623835,15.25255066,3482.7,3481.3,2.3117]
[1718379624039,14.70255066,3482.7,3481.3,2.3117]
[1718379624199,17.50217001,3482.7,3481.1,2.3875]
[1718379624403,15.11327001,3482.7,3481.2,0.05744618]
[1718379624732,15.11327001,3482.7,3481.1,2.3875]
[1718379625859,22.98704515,3482.7,3481.1,2.3875]
[1718379626466,22.98704515,3482.7,3480.8,9.5395]
[1718379626467,25.30354515,3482.7,3480.8,9.5395]
[1718379629077,22.43221515,3482.7,3480.9,0.05745285]
[1718379629560,22.43221515,3482.7,3480.9,1.87345285]
[1718379630079,19.56088515,3482.7,3481.5,2.4035]
[1718379630313,6.37061001,3482.7,3481.7,1.816]
[1718379630593,2.92014533,3482.7,3482.2,2.3192]
[1718379630820,0.04881533,3482.7,3482.2,2.3192]
[1718379631144,0.07171065,3482.8,3482.2,2.3192]
[1718379631358,0.04490679,3482.7,3482.2,2.3192]
[1718379631890,0.14619267,3482.7,3482.2,2.3192]
[1718379632290,3.61926694,3482.7,3482.2,2.3192]
[1718379632589,6.49059694,3482.7,3482.2,2.3192]
[1718379633148,3.61926694,3482.7,3482.2,2.3192]
[1718379633349,0.07448202,3482.7,3482.2,2.3192]
[1718379633550,5.87118,3482.9,3482.2,2.3192]
[1718379633761,0.14659879,3482.8,3482.2,2.3192]
[1718379634470,0.07171065,3482.7,3482.2,2.3192]
[1718379634672,0.14620427,3482.7,3482.2,2.3192]
[1718379635797,0.07449362,3482.7,3482.2,2.3192]
[1718379636162,0.07171065,3483.0,3482.2,2.3192]
[1718379636394,0.074694,3482.9,3482.2,2.3192]
[1718379637405,2.94272065,3483.1,3482.2,2.3192]
[1718379637604,0.07469141,3482.8,3482.2,2.3192]
[1718379637906,0.07463428,3482.7,3482.2,2.3192]
[1718379638115,0.07171065,3483.1,3482.3,0.05742868]
[1718379638418,0.07480566,3483.0,3482.2,2.3192]
[1718379638615,2.87133,3482.7,3482.2,2.3192]
[1718379638823,2.94594566,3483.0,3482.2,2.3192]
[1718379638824,2.87126,3482.8,3482.2,2.3192]
[1718379639137,3.0179035,3482.7,3482.2,2.3192]
[1718379640891,5.8892335,3482.7,3482.2,2.3192]
[1718379641100,6.76527385,3482.7,3482.2,2.3192]
[1718379641723,9.63660385,3482.7,3481.6,1.816]
[1718379642026,9.63660385,3482.7,3481.8,2.4276]
[1718379642230,12.50793385,3482.7,3481.8,2.4276]
[1718379642436,12.50793385,3482.7,3481.3,2.339]
[1718379643661,19.96037899,3482.7,3481.3,2.339]
[1718379643835,23.38170899,3482.7,3481.3,2.339]
[1718379647950,23.38170899,3482.7,3480.9,2.3958]
[1718379648250,23.38170899,3482.7,3480.9,4.2118]
[1718379649253,26.38170899,3482.7,3480.9,2.3958]
[1718379649965,28.24970991,3482.7,3480.9,2.3958]
[1718379650126,26.87834395,3482.7,3480.9,2.3958]
[1718379650635,28.24970991,3482.7,3480.9,2.3958]
[1718379652365,32.95697395,3482.7,3482.6,7.7e-06]
[1718379654470,33.36382338,3482.7,3482.6,7.7e-06]
[1718379654778,34.48627593,3482.7,3482.6,7.7e-06]
[1718379654936,35.97143664,3482.7,3482.6,7.7e-06]
[1718379655578,2.87306,3480.6,3480.5,2.3449]
[1718379655867,2.94543559,3480.6,3480.5,2.3449]
[1718379656871,2.87332,3480.3,3479.9,2.2771]
[1718379657046,2.87325,3480.4,3479.9,2.2771]
[1718379657248,0.07214678,3480.2,3479.9,2.2771]
[1718379657448,0.07208956,3480.1,3480.0,0.52831]
[1718379657846,2.87326,3480.4,3480.0,0.52831]
[1718379658098,0.07208956,3480.1,3480.0,0.52831]
[1718379658259,2.87326,3480.4,3480.0,0.52831]
[1718379658450,0.07220398,3480.3,3480.0,0.52831]
[1718379658651,0.07220398,3480.3,3480.1,0.280541]
[1718379659278,0.07220398,3480.3,3480.2,2.2945]
[1718379659596,2.87266,3481.1,3480.2,2.2945]
[1718379659802,2.87237,3481.5,3480.5,1.816]
[1718379660025,0.07171065,3481.4,3480.7,2.3605]
[1718379660299,2.94413065,3481.4,3480.9,2.3605]
[1718379660468,0.07171065,3481.4,3480.9,2.3605]
[1718379660648,2.94413065,3481.4,3480.9,2.3605]
[1718379661521,0.07171065,3481.4,3480.9,2.3605]
[1718379661821,2.94413065,3481.4,3480.9,2.3605]
[1718379661958,2.94413065,3481.4,3480.9,2.82472477]